fUSD/lending_fUSD_20250826
["ID","MTS","AMOUNT","RATE_DAILY","PERIOD"]
[381442847,1756199446041,-881.0,0.00032604,2]
[381442848,1756199446051,-729.0,0.00032604,2]
[381442849,1756199446060,-1562.0,0.00032604,2]
[381442850,1756199446069,-500.0,0.00032604,2]
[381442851,1756199446079,-946.20203785,0.00032659,2]
[381442852,1756199446088,-221.0,0.0003269,30]
[381442853,1756199446096,-166.12,0.00032704,2]
[381442854,1756199446106,-150.0,0.00032742,120]
[381442855,1756199446115,-12056.24858954,0.00032749,3]
[381442856,1756199446332,-3403.11985502,0.00032749,3]
[381442857,1756199447302,-338.88,0.00013699,2]
[381442858,1756199447312,-338.88,0.00020187,2]
[381442859,1756199447322,-49.32233004,0.00026676,2]
[381442860,1756199447454,-289.55766996,0.00026676,2]
[381442861,1756199447463,-374.94608211,0.00028055,2]
[381442862,1756199447475,-798.05391789,0.00028055,2]
[381442863,1756199447484,-1173.0,0.00031055,2]
[381442864,1756199447494,-617.24307258,0.00031171,2]
[381442865,1756199447521,-657.3435083,0.00031171,2]
[381442866,1756199447530,-5197.1799857,0.00032749,3]
[381442867,1756199447540,-1177.2328802,0.00032749,3]
[381442868,1756199447551,-240.73684114,0.00032749,3]
[381442869,1756199447560,-98.37699886,0.00032759,2]
[381442887,1756200154457,303.39,0.00025786,120]
[381442888,1756200475699,4339.74594875,0.00013,15]
[381442889,1756200476092,281.61162411,0.00013,15]
[381442897,1756200631803,-395.23,0.00013699,2]
[381442898,1756200631815,-72.46824505,0.00014349,2]
[381442899,1756200631826,-227.53175495,0.00014349,2]
[381442900,1756200631835,-250.0,0.00014349,2]
[381442901,1756200631845,-2350.93450526,0.00015,2]
[381442902,1756200631856,-1240.53756494,0.00015,2]
[381442903,1756200631865,-300.0,0.00015068,2]
[381442904,1756200631875,-250.0,0.00015068,2]
[381442905,1756200631884,-500.0,0.00015068,2]
[381442906,1756200631894,-1517.64,0.000153,2]
[381442907,1756200631903,-101.6584437,0.00015399,2]
[381442908,1756200631928,-1098.3415563,0.00015399,2]
[381442909,1756200631939,-93.10903687,0.000154,2]
[381442910,1756200631981,-1188.97389735,0.000154,2]
[381442911,1756200632046,-1647.37314666,0.000154,2]
[381442912,1756200632057,-540.0,0.000154,2]
[381442913,1756200632068,-12905.18666274,0.000154,2]
[381442914,1756200632077,-574.74,0.00015431,2]
[381442915,1756200632086,-574.74,0.00015437,2]
[381442916,1756200632095,-574.74,0.00015442,2]
[381442917,1756200632104,-574.74,0.00015448,2]
[381442918,1756200632113,-574.74,0.00015454,2]
[381442919,1756200632122,-414.88495107,0.00015459,2]
[381442920,1756200632133,-159.85504893,0.00015459,2]
[381442921,1756200632142,-574.74,0.00015465,2]
[381442922,1756200632151,-65.40495107,0.00015471,2]
[381442955,1756200637834,-509.33504893,0.00015471,2]
[381442956,1756200637844,-574.74,0.00015476,2]
[381442957,1756200637854,-574.74,0.00015482,2]
[381442958,1756200637863,-1500.0,0.00015482,2]
[381442959,1756200637873,-414.68261081,0.00015488,2]
[381442960,1756200637900,-160.05738919,0.00015488,2]
[381442961,1756200637910,-574.74,0.00015494,2]
[381442962,1756200637919,-574.74,0.00015499,2]
[381442963,1756200637928,-574.74,0.00015505,2]
[381442964,1756200637940,-574.74,0.00015511,2]
[381442965,1756200637950,-574.74,0.00015516,2]
[381442966,1756200637960,-574.74,0.00015522,2]
[381442967,1756200637969,-574.74,0.00015528,2]
[381442968,1756200637979,-574.74,0.00015533,2]
[381442969,1756200637989,-574.74,0.00015539,2]
[381442970,1756200637999,-769.84,0.00015748,2]
[381442971,1756200638008,-160.0,0.00015787,7]
[381442972,1756200638017,-152.0,0.000158,2]
[381442973,1756200638027,-407.36,0.00015836,2]
[381442974,1756200638037,-500.0,0.0001587,2]
[381442975,1756200638047,-250.0,0.0001587,2]
[381442976,1756200638057,-583.33161663,0.00016,2]
[381442978,1756200638066,-150.0,0.000162,2]
[381442979,1756200638076,-150.0,0.000162,2]
[381442981,1756200638086,-150.0,0.000162,2]
[381442982,1756200638096,-150.0,0.000162,2]
[381442983,1756200638105,-151.44852476,0.000162,2]
[381442984,1756200638115,-153.83542786,0.000162,2]
[381442986,1756200638125,-150.0,0.000162,2]
[381442988,1756200638134,-153.87584645,0.000162,2]
[381442990,1756200638144,-152.00112268,0.000162,2]
[381442991,1756200638153,-150.0,0.000162,2]
[381442993,1756200638162,-500.0,0.000162,2]
[381442995,1756200638172,-633.50160166,0.000163,2]
[381442997,1756200638182,-200.0,0.0001634,2]
[381442999,1756200638192,-550.0,0.00016372,2]
[381443001,1756200638201,-569.99139665,0.00016373,2]
[381443003,1756200638210,-150.99,0.00016373,2]
[381443004,1756200638220,-560.6,0.00016373,2]
[381443006,1756200638229,-299.99,0.00016373,4]
[381443008,1756200638239,-999.99,0.00016373,2]
[381443010,1756200638248,-500.0,0.00016373,2]
[381443012,1756200638258,-377.62947116,0.00016373,2]
[381443014,1756200638268,-500.0,0.00016373,2]
[381443016,1756200638278,-500.0,0.00016373,2]
[381443018,1756200638288,-500.0,0.00016373,2]
[381443019,1756200638297,-500.0,0.00016373,2]
[381443021,1756200638307,-555.63329886,0.00016373,2]
[381443023,1756200638317,-399.63,0.0001639,3]
[381443025,1756200638326,-531.45,0.0001639,2]
[381443027,1756200638335,-531.45,0.0001639,2]
[381443029,1756200638344,-531.45,0.0001639,2]
[381443031,1756200638354,-531.45,0.0001639,2]
[381443033,1756200638363,-531.45,0.0001639,2]
[381443035,1756200638373,-168.08021093,0.00016399,2]
[381443037,1756200638382,-204.97294561,0.00016399,2]
[381443038,1756200638392,-500.0,0.00016399,2]
[381443040,1756200638401,-267.50393266,0.00016399,2]
[381443042,1756200638411,-180.52069703,0.00016399,2]
[381443044,1756200638422,-188.43186909,0.00016399,2]
[381443046,1756200638434,-1121387.37963416,0.000164,3]
[381443048,1756200638443,-189.12340161,0.000164,2]
[381443050,1756200638453,-14671.80811491,0.000165,2]
[381443052,1756200638463,-633.50160163,0.00016567,2]
[381443054,1756200638472,-352.96575861,0.000166,2]
[381443056,1756200638482,-14671.80811486,0.00016656,2]
[381443058,1756200638491,-1269.36,0.00016706,2]
[381443060,1756200638501,-1000.0,0.00016748,2]
[381443061,1756200638511,-14671.80811486,0.00016811,2]
[381443063,1756200638520,-633.50160163,0.00016833,2]
[381443077,1756200638975,-253.0,0.00016882,2]
[381443078,1756200638985,-2684.59,0.00016903,2]
[381443079,1756200638994,-244.22038366,0.00016921,2]
[381443080,1756200639003,-416.68051754,0.00016921,2]
[381443081,1756200639012,-874.0,0.00016932,2]
[381443082,1756200639022,-152.0,0.0001694,2]
[381443083,1756200639031,-14671.80811486,0.00016967,2]
[381443084,1756200639041,-131555.54166091,0.00017,2]
[381443085,1756200639051,-150.0,0.000171,2]
[381443086,1756200639060,-150.0,0.000171,2]
[381443087,1756200639070,-633.50160163,0.000171,2]
[381443088,1756200639079,-14671.80811486,0.00017122,2]
[381443089,1756200639089,-1000.0,0.00017141,2]
[381443090,1756200639098,-303.39,0.00017191,2]
[381443091,1756200639107,-1667.6406368,0.000172,2]
[381443092,1756200639116,-14671.80811486,0.00017278,2]
[381443093,1756200639128,-1500.0,0.00017296,2]
[381443094,1756200639138,-14671.80811486,0.00017433,2]
[381443095,1756200639148,-175.58,0.00017444,2]
[381443096,1756200639159,-935.0,0.00017485,2]
[381443097,1756200639168,-14671.80811486,0.00017589,2]
[381443098,1756200639179,-32042.2234504,0.000177,2]
[381443099,1756200639188,-2500.0,0.00017724,3]
[381443100,1756200639197,-2500.0,0.00017733,3]
[381443101,1756200639206,-2500.0,0.00017742,3]
[381443102,1756200639216,-14671.80811486,0.00017744,2]
[381443103,1756200639225,-151.0,0.0001775,2]
[381443104,1756200639235,-2500.0,0.0001775,3]
[381443105,1756200639245,-151.0,0.00017759,2]
[381443106,1756200639254,-2500.0,0.00017759,3]
[381443107,1756200639263,-2500.0,0.00017768,3]
[381443108,1756200639272,-2500.0,0.00017777,3]
[381443109,1756200639282,-2500.0,0.00017786,3]
[381443110,1756200639291,-151.0,0.00017794,2]
[381443111,1756200639300,-2500.0,0.00017794,3]
[381443112,1756200639310,-3532.66431368,0.000178,2]
[381443113,1756200639320,-2006.48455946,0.000178,2]
[381443114,1756200639331,-151.0,0.00017802,2]
[381443115,1756200639343,-2500.0,0.00017803,3]
[381443116,1756200639363,-3532.6643136,0.00017811,2]
[381443117,1756200639376,-2500.0,0.00017812,3]
[381443118,1756200639386,-2500.0,0.00017821,3]
[381443119,1756200639397,-151.0,0.00017822,2]
[381443120,1756200639407,-3532.6643136,0.00017822,2]
[381443121,1756200639418,-2500.0,0.0001783,3]
[381443122,1756200639428,-251.0,0.0001783,2]
[381443123,1756200639437,-3532.6643136,0.00017833,2]
[381443124,1756200639447,-2500.0,0.00017838,3]
[381443125,1756200639456,-151.0,0.0001784,2]
[381443126,1756200639465,-2038.34502329,0.00017844,2]
[381443127,1756200639474,-3532.6643136,0.00017844,2]
[381443128,1756200639484,-2500.0,0.00017847,3]
[381443129,1756200639493,-151.0,0.00017849,2]
[381443130,1756200639503,-3532.6643136,0.00017856,2]
[381443131,1756200639512,-2500.0,0.00017856,3]
[381443132,1756200639524,-5800.0,0.00017858,2]
[381443133,1756200639538,-2500.0,0.00017865,3]
[381443134,1756200639549,-5800.0,0.00017866,2]
[381443135,1756200639559,-3532.6643136,0.00017867,2]
[381443137,1756200639571,-500.0,0.00017873,2]
[381443139,1756200639580,-500.85868486,0.00017873,2]
[381443141,1756200639590,-500.0,0.00017873,2]
[381443142,1756200639599,-500.26345837,0.00017873,2]
[381443143,1756200639610,-2500.0,0.00017874,3]
[381443144,1756200639620,-5800.0,0.00017874,2]
[381443145,1756200639629,-3532.6643136,0.00017878,2]
[381443146,1756200639638,-2500.0,0.00017882,3]
[381443147,1756200639647,-5800.0,0.00017883,2]
[381443148,1756200639657,-3532.6643136,0.00017889,2]
[381443149,1756200639666,-2500.0,0.00017891,3]
[381443151,1756200639676,-5800.0,0.00017891,2]
[381443152,1756200639685,-159.9235536,0.000179,2]
[381443153,1756200639694,-2500.0,0.000179,3]
[381443154,1756200639703,-1305.81224542,0.000179,2]
[381443155,1756200639712,-3532.6643136,0.000179,2]
[381443156,1756200639722,-167.70287444,0.000179,2]
[381443157,1756200639731,-5800.0,0.000179,2]
[381443158,1756200639740,-14671.80811486,0.000179,2]
[381443159,1756200639748,-1522.37019432,0.000179,2]
[381443160,1756200639758,-4307.9432076,0.00017909,2]
[381443161,1756200639767,-545.68820147,0.00017973,2]
[381443162,1756200639777,-500.6613782,0.00017973,2]
[381443163,1756200639787,-500.0,0.00017973,2]
[381443164,1756200639797,-500.0,0.00017973,2]
[381443165,1756200639807,-563.54231776,0.00017973,2]
[381443166,1756200639817,-500.0,0.00017973,2]
[381443167,1756200639827,-201.66101404,0.00017973,2]
[381443168,1756200639837,-500.0,0.00017973,2]
[381443169,1756200639846,-500.0,0.00017973,2]
[381443170,1756200639855,-167.26669528,0.00017973,2]
[381443171,1756200639865,-500.0,0.00017973,2]
[381443172,1756200639874,-500.0,0.00017973,2]
[381443173,1756200639884,-500.0,0.00017973,2]
[381443174,1756200639895,-500.0,0.00017973,2]
[381443175,1756200639904,-501.45721323,0.00017973,2]
[381443176,1756200639914,-173.53498168,0.00017973,2]
[381443177,1756200639923,-500.0,0.00017973,2]
[381443178,1756200639933,-500.0,0.00017973,2]
[381443179,1756200639942,-502.98512849,0.00017973,2]
[381443180,1756200639952,-163.289061,0.00017973,2]
[381443181,1756200639961,-522.35770442,0.00017973,2]
[381443182,1756200639970,-500.0,0.00017973,2]
[381443183,1756200639980,-500.11200323,0.00017973,2]
[381443184,1756200639989,-500.0,0.00017973,2]
[381443185,1756200639998,-500.0,0.00017973,2]
[381443186,1756200640008,-500.0,0.00017973,2]
[381443187,1756200640017,-458.43590123,0.00017973,2]
[381443188,1756200640027,-321.7839145,0.00017973,2]
[381443189,1756200640038,-500.0,0.00017973,2]
[381443190,1756200640048,-500.0,0.00017973,2]
[381443191,1756200640057,-500.0,0.00017973,2]
[381443192,1756200640067,-500.0,0.00017973,2]
[381443193,1756200640076,-500.0,0.00017973,2]
[381443194,1756200640086,-500.0,0.00017973,2]
[381443195,1756200640095,-500.0,0.00017973,2]
[381443196,1756200640105,-500.0,0.00017973,2]
[381443197,1756200640115,-500.0,0.00017973,2]
[381443198,1756200640126,-500.0,0.00017973,2]
[381443199,1756200640135,-511.81290197,0.00017973,2]
[381443200,1756200640145,-500.0,0.00017973,2]
[381443201,1756200640156,-161.88879398,0.00017973,2]
[381443202,1756200640166,-500.0,0.00017973,2]
[381443203,1756200640177,-500.0,0.00017973,2]
[381443204,1756200640188,-500.0,0.00017973,2]
[381443205,1756200640198,-500.0,0.00017973,2]
[381443206,1756200640207,-164.23268451,0.00017973,2]
[381443207,1756200640217,-165.08964758,0.00017973,2]
[381443208,1756200640227,-500.0,0.00017973,2]
[381443209,1756200640237,-162.05988687,0.00017973,2]
[381443210,1756200640248,-528.57640829,0.00017973,2]
[381443211,1756200640258,-160.15506865,0.00017973,2]
[381443212,1756200640269,-460.51275649,0.00017973,2]
[381443213,1756200640279,-500.51116248,0.00017973,2]
[381443214,1756200640289,-500.0,0.00017973,2]
[381443215,1756200640307,-500.0,0.00017989,2]
[381443216,1756200640317,-500.0,0.00017989,2]
[381443217,1756200640327,-500.0,0.00017989,2]
[381443218,1756200640336,-366.50022424,0.00017989,2]
[381443219,1756200640345,-200.0,0.00017989,2]
[381443220,1756200640355,-500.0,0.00017989,2]
[381443221,1756200640364,-500.0,0.00017989,2]
[381443222,1756200640373,-500.0,0.00017989,2]
[381443223,1756200640384,-500.0,0.00017989,2]
[381443224,1756200640394,-500.0,0.00017989,2]
[381443225,1756200640404,-500.0,0.00017989,2]
[381443226,1756200640413,-389.51157072,0.00017989,2]
[381443227,1756200640426,-600.0,0.00017989,2]
[381443228,1756200640437,-600.0,0.00017989,2]
[381443229,1756200640459,-600.0,0.00017989,2]
[381443230,1756200640478,-600.0,0.00017989,2]
[381443231,1756200640488,-600.0,0.00017989,2]
[381443232,1756200640498,-600.0,0.00017989,2]
[381443233,1756200640509,-600.0,0.00017989,2]
[381443234,1756200640520,-600.0,0.00017989,2]
[381443235,1756200640531,-600.0,0.00017989,2]
[381443236,1756200640542,-600.0,0.00017989,2]
[381443237,1756200640552,-600.0,0.00017989,2]
[381443238,1756200640563,-600.0,0.00017989,2]
[381443239,1756200640573,-500.0,0.00017989,2]
[381443240,1756200640584,-600.0,0.00017989,2]
[381443241,1756200640593,-151.0,0.00017989,2]
[381443242,1756200640602,-200.0,0.00017989,2]
[381443243,1756200640616,-151.0,0.00017989,2]
[381443244,1756200640626,-151.0,0.00017989,2]
[381443245,1756200640636,-151.0,0.00017989,2]
[381443246,1756200640646,-151.0,0.00017989,2]
[381443247,1756200640656,-151.0,0.00017989,2]
[381443248,1756200640665,-151.0,0.00017989,2]
[381443249,1756200640682,-151.0,0.00017989,2]
[381443250,1756200640691,-151.0,0.00017989,2]
[381443251,1756200640701,-151.0,0.00017989,2]
[381443252,1756200640715,-151.0,0.00017989,2]
[381443253,1756200640730,-151.0,0.00017989,2]
[381443254,1756200640739,-151.0,0.00017989,2]
[381443255,1756200640749,-151.0,0.00017989,2]
[381443256,1756200640759,-2000.0,0.00017999,2]
[381443257,1756200640769,-300.0,0.00017999,2]
[381443258,1756200640779,-300.0,0.00017999,2]
[381443259,1756200640788,-300.0,0.00017999,2]
[381443260,1756200640798,-2000.0,0.00017999,2]
[381443261,1756200640808,-2000.0,0.00017999,2]
[381443262,1756200640818,-2000.0,0.00017999,2]
[381443263,1756200640827,-300.0,0.00017999,2]
[381443264,1756200640836,-300.0,0.00017999,2]
[381443265,1756200640846,-31865.23207639,0.00017999,7]
[381443266,1756200640855,-300.0,0.00017999,2]
[381443267,1756200640865,-1000.0,0.00017999,2]
[381443268,1756200640873,-879.24,0.00017999,2]
[381443269,1756200640883,-421590.40986649,0.00017999,7]
[381443270,1756200640892,-261.719,0.00017999,2]
[381443271,1756200640902,-458.7662338,0.00017999,7]
[381443272,1756200640911,-300.0,0.00017999,2]
[381443273,1756200640923,-300.0,0.00017999,2]
[381443274,1756200640933,-300.0,0.00017999,2]
[381443275,1756200640943,-150.0,0.00017999,2]
[381443276,1756200640952,-150.0,0.00017999,2]
[381443277,1756200640961,-150.0,0.00017999,2]
[381443278,1756200640971,-150.0,0.00017999,2]
[381443279,1756200640981,-150.0,0.00017999,2]
[381443280,1756200640991,-150.0,0.00017999,2]
[381443281,1756200641000,-150.0,0.00017999,2]
[381443282,1756200641010,-150.0,0.00017999,2]
[381443283,1756200641019,-150.0,0.00017999,2]
[381443284,1756200641028,-150.0,0.00017999,2]
[381443285,1756200641037,-150.0,0.00017999,2]
[381443286,1756200641047,-150.0,0.00017999,2]
[381443287,1756200641056,-150.0,0.00017999,2]
[381443288,1756200641066,-150.0,0.00017999,2]
[381443289,1756200641075,-150.0,0.00017999,2]
[381443290,1756200641084,-150.0,0.00018,2]
[381443291,1756200641093,-150.0,0.00018,2]
[381443292,1756200641102,-150.00000001,0.00018,2]
[381443293,1756200641111,-150.0,0.00018,2]
[381443294,1756200641121,-152.68001579,0.00018,2]
[381443295,1756200641130,-150.0,0.00018,2]
[381443296,1756200641140,-10613536.6463117,0.00018,2]
[381443297,1756200641149,-4130887.66631152,0.00018,2]
[381443298,1756200641194,-1829.83361618,0.00018,2]
[381443299,1756200641206,-2003.59445779,0.00018,2]
[381443300,1756200641236,-5675.40614574,0.00018,2]
[381443301,1756200641247,-4750.37,0.00018,2]
[381443302,1756200642198,-150.54867805,0.00017999,2]
[381443303,1756200642207,-110139.77523745,0.00018,2]
[381443304,1756200642219,-22239.39944,0.00018,2]
[381443305,1756200642231,-6818493.45545668,0.00018,2]
[381443306,1756200642309,-655.28295906,0.00018,2]
[381443307,1756200642330,-1792.18661137,0.00018,2]
[381443308,1756200642458,-1553.73338953,0.00018,2]
[381443309,1756200642469,-419.77238971,0.00018,2]
[381443310,1756200642480,-6001.864064,0.00018,2]
[381443311,1756200642492,-306.069,0.00018,2]
[381443320,1756200644609,-633.50160163,0.00017367,2]
[381443321,1756200644618,-2500.0,0.00017715,3]
[381443322,1756200644628,-151.0,0.00017778,2]
[381443323,1756200644637,-2308000.04060346,0.00018,2]
[381443324,1756200644646,-176.913037,0.00018,2]
[381443325,1756200644656,-525194.33038377,0.00018,2]
[381443326,1756200644727,-4449.44764978,0.00018,2]
[381443328,1756200646123,-163.11020025,0.00016646,2]
[381443329,1756200646134,-171.32675975,0.00017633,2]
[381443349,1756201834902,-351.17144605,0.00013843,2]
[381443350,1756201834914,-386.12603287,0.00013843,2]
[381443351,1756201834923,-2500.0,0.00014063,2]
[381443352,1756201834933,-1200.0,0.00014565,2]
[381443353,1756201834942,-22905.81382542,0.00014566,2]
[381443354,1756201834951,-325.89,0.00015325,2]
[381443355,1756201834962,-1680.0,0.00016022,2]
[381443356,1756201834972,-250.0,0.00016538,2]
[381443357,1756201834981,-4176.7,0.00016538,2]
[381443358,1756201834991,-1000.0,0.00016655,2]
[381443359,1756201835000,-550.0,0.00016689,2]
[381443360,1756201835009,-600.0,0.0001669,2]
[381443361,1756201835019,-151.0,0.0001669,2]
[381443362,1756201835028,-600.0,0.0001669,2]
[381443363,1756201835039,-600.0,0.0001669,2]
[381443364,1756201835049,-600.0,0.0001669,2]
[381443365,1756201835058,-600.0,0.0001669,2]
[381443366,1756201835067,-253.65455807,0.0001669,2]
[381443367,1756201835191,-346.34544193,0.0001669,2]
[381443368,1756201835201,-600.0,0.0001669,2]
[381443369,1756201835210,-600.0,0.0001669,2]
[381443370,1756201835219,-68.65834606,0.0001669,2]
[381443371,1756201835231,-531.34165394,0.0001669,2]
[381443372,1756201835244,-264.00881791,0.0001669,2]
[381443373,1756201835254,-19.47055203,0.0001669,2]
[381443374,1756201835265,-480.52944797,0.0001669,2]
[381443375,1756201835275,-102.49824324,0.0001669,2]
[381443376,1756201835346,-97.50175676,0.0001669,2]
[381443377,1756201835356,-151.0,0.0001669,2]
[381443378,1756201835367,-557.28464447,0.000167,2]
[381443379,1756201835379,-2254.06158146,0.000167,2]
[381443490,1756201839992,-2547.0,0.0001589,2]
[381443491,1756201840001,-1166.87252887,0.00016454,2]
[381443492,1756201840087,-158.46747113,0.00016454,2]
[381443493,1756201840097,-2053.84166743,0.000167,2]
[381443497,1756201842798,-487.39284,0.000167,2]
[381443498,1756201842832,-3799.44438748,0.000167,2]
[381443506,1756201843265,-1149.5,0.000167,2]
[381443507,1756201843276,-562.4845,0.000167,2]
[381443508,1756201843408,-4009.88531421,0.000167,2]
[381443521,1756201844766,-6420.04424506,0.000167,2]
[381443522,1756201844919,-3693.53956009,0.000167,2]
[381443523,1756201844962,-271.42282622,0.000167,2]
[381443524,1756201844973,-1615.5031305,0.000167,2]
[381443525,1756201844984,-1178.94075718,0.000167,2]
[381443526,1756201844995,-173.2245459,0.000167,2]
[381443527,1756201845005,-468.94,0.000167,2]
[381443528,1756201845014,-174.8,0.000167,2]
[381443529,1756201845023,-200.0,0.000167,2]
[381443530,1756201845032,-160.0,0.000167,7]
[381443531,1756201845041,-500.0,0.00016745,2]
[381443532,1756201845050,-1634.47,0.00016749,2]
[381443533,1756201845061,-1886.42362273,0.00016759,2]
[381443534,1756201845071,-250.0,0.00016786,2]
[381443535,1756201845080,-500.0,0.000168,2]
[381443536,1756201845089,-500.0,0.00016855,2]
[381443537,1756201845098,-24.91970937,0.00016866,2]
[381443538,1756201845109,-975.08029063,0.00016866,2]
[381443539,1756201845118,-500.0,0.0001691,2]
[381443540,1756201845127,-500.0,0.00016965,2]
[381443541,1756201845136,-500.0,0.0001702,2]
[381443542,1756201845146,-500.0,0.00017075,2]
[381443543,1756201845155,-605.42,0.00017104,2]
[381443544,1756201845164,-500.0,0.0001713,2]
[381443545,1756201845174,-345.48786916,0.0001718,2]
[381443546,1756201845185,-300.0678509,0.0001718,2]
[381443547,1756201845194,-500.0,0.00017185,2]
[381443548,1756201845203,-151.0,0.00017238,2]
[381443549,1756201845212,-500.0,0.0001724,2]
[381443550,1756201845221,-500.0,0.00017295,2]
[381443551,1756201845230,-1497.1321491,0.00017296,2]
[381443552,1756201845346,-265.96,0.00017296,2]
[381443582,1756201848479,-236.9078509,0.00017296,2]
[381443583,1756201848488,-2000.0,0.00017296,2]
[381443584,1756201848497,-1173.072,0.00017296,2]
[381443585,1756201848506,-275.321,0.00017296,2]
[381443586,1756201848516,-552.42508,0.0001735,2]
[381443587,1756201848525,-1468.63363889,0.00017492,2]
[381443588,1756201848535,-2000.0,0.000175,2]
[381443589,1756201848544,-2000.0,0.000175,2]
[381443590,1756201848554,-2000.0,0.000175,2]
[381443591,1756201848563,-2000.0,0.000175,2]
[381443592,1756201848573,-880.81066434,0.00017572,2]
[381443593,1756201848582,-2500.0,0.00017601,3]
[381443594,1756201848591,-2500.0,0.0001761,3]
[381443595,1756201848602,-2500.0,0.00017618,3]
[381443596,1756201848612,-2351.0,0.00017624,2]
[381443597,1756201848621,-2500.0,0.00017627,3]
[381443598,1756201848630,-458.7662338,0.00017627,3]
[381443599,1756201848639,-212.18043798,0.00017627,3]
[381443600,1756201848649,-462.17484188,0.00017633,2]
[381443601,1756201848658,-2500.0,0.00017636,3]
[381443602,1756201848667,-2500.0,0.00017645,3]
[381443603,1756201848677,-2500.0,0.00017654,3]
[381443604,1756201848687,-2500.0,0.00017662,3]
[381443605,1756201848697,-2500.0,0.00017671,3]
[381443606,1756201848707,-2500.0,0.0001768,3]
[381443607,1756201848716,-167.74,0.00017683,2]
[381443608,1756201848725,-2500.0,0.00017689,3]
[381443609,1756201848734,-2500.0,0.00017698,3]
[381443610,1756201848743,-2500.0,0.00017706,3]
[381443611,1756201848752,-5800.0,0.00017764,2]
[381443612,1756201848761,-5800.0,0.00017773,2]
[381443613,1756201848770,-5800.0,0.00017781,2]
[381443614,1756201848779,-210.83078363,0.00017786,2]
[381443615,1756201848788,-5800.0,0.0001779,2]
[381443616,1756201848798,-5800.0,0.00017798,2]
[381443617,1756201848807,-5800.0,0.00017806,2]
[381443618,1756201848817,-935.0,0.00017807,2]
[381443619,1756201848826,-5800.0,0.00017815,2]
[381443620,1756201848835,-5800.0,0.00017823,2]
[381443621,1756201848844,-6777.98201705,0.0001783,2]
[381443622,1756201848853,-5800.0,0.00017832,2]
[381443623,1756201848863,-5800.0,0.00017841,2]
[381443624,1756201848872,-5800.0,0.00017849,2]
[381443625,1756201848883,-171.14326063,0.00017899,2]
[381443626,1756201848894,-633.50160163,0.000179,2]
[381443627,1756201848903,-151.0,0.000179,3]
[381443628,1756201848913,-1221.0,0.000179,3]
[381443629,1756201848922,-151.0,0.000179,3]
[381443630,1756201848932,-1221.0,0.000179,3]
[381443631,1756201848941,-151.0,0.000179,3]
[381443632,1756201848951,-152.0,0.000179,3]
[381443633,1756201848961,-154.0,0.000179,3]
[381443634,1756201848971,-151.0,0.000179,3]
[381443635,1756201848981,-1221.0,0.000179,3]
[381443636,1756201848991,-152.0,0.000179,3]
[381443637,1756201849000,-1221.0,0.000179,3]
[381443638,1756201849010,-152.0,0.000179,3]
[381443639,1756201849019,-1221.0,0.000179,3]
[381443640,1756201849028,-151.0,0.000179,3]
[381443641,1756201849038,-202.61513995,0.000179,3]
[381443642,1756201849047,-151.0,0.000179,3]
[381443643,1756201849058,-1221.0,0.000179,3]
[381443644,1756201849067,-154.0,0.000179,3]
[381443645,1756201849076,-151.0,0.000179,3]
[381443646,1756201849086,-1221.0,0.000179,3]
[381443647,1756201849095,-154.0,0.000179,3]